[Event "Titled Tuesday Blitz November 14 Late 2023"]
[White "Senft, Sean"]
[Black "Dahlgren, James Allen"]
[WhiteFideId "2044960"]
[BlackFideId "22256873"]
[WhiteElo "2252"]
[BlackElo "2140"]
[Result "1-0"]
[Round "6"]
[TimeControl "180+1"]
[Date "2023.11.14"]
[WhiteClock "0:00:52"]
[BlackClock "0:00:17"]
[Board "136"]

1. d4 {[%clk 0:03:00]}  e6 {[%clk 0:02:58]} 2. c4 {[%clk 0:02:58]}  c5 {[%clk 0:02:59]} 3. d5 {[%clk 0:02:58]}  d6 {[%clk 0:02:59]} 4. Nc3 {[%clk 0:02:56]}  e5 {[%clk 0:02:59]} 5. e4 {[%clk 0:02:56]}  f5 {[%clk 0:02:59]} 6. f4 {[%clk 0:02:56]}  Nf6 {[%clk 0:02:57]} 7. Nf3 {[%clk 0:02:57]}  fxe4 {[%clk 0:02:55]} 8. Ng5 {[%clk 0:02:56]}  Bf5 {[%clk 0:02:55]} 9. Be2 {[%clk 0:02:55]}  Nbd7 {[%clk 0:02:50]} 10. O-O {[%clk 0:02:53]}  Be7 {[%clk 0:02:45]} 11. Bh5+ {[%clk 0:02:46]}  Bg6 {[%clk 0:02:39]} 12. Bxg6+ {[%clk 0:02:46]}  hxg6 {[%clk 0:02:38]} 13. Ne6 {[%clk 0:02:45]}  Qb6 {[%clk 0:02:35]} 14. Nxg7+ {[%clk 0:02:40]}  Kf7 {[%clk 0:02:35]} 15. Ne6 {[%clk 0:02:40]}  Rh5 {[%clk 0:02:31]} 16. fxe5 {[%clk 0:02:36]}  Nxe5 {[%clk 0:02:32]} 17. Nxe4 {[%clk 0:02:36]}  Rah8 {[%clk 0:02:26]} 18. h3 {[%clk 0:01:50]}  Nxc4 {[%clk 0:02:13]} 19. Qf3 {[%clk 0:01:43]}  Rf5 {[%clk 0:02:09]} 20. Bf4 {[%clk 0:01:35]}  Qxb2 {[%clk 0:01:39]} 21. g4 {[%clk 0:01:28]}  Ne5 {[%clk 0:01:27]} 22. Qg2 {[%clk 0:01:05]}  Qxg2+ {[%clk 0:01:14]} 23. Kxg2 {[%clk 0:01:06]}  Nxe4 {[%clk 0:01:13]} 24. gxf5 {[%clk 0:01:05]}  gxf5 {[%clk 0:01:05]} 25. Bxe5 {[%clk 0:01:05]}  dxe5 {[%clk 0:01:03]} 26. Rxf5+ {[%clk 0:01:05]}  Kg6 {[%clk 0:01:03]} 27. Rxe5 {[%clk 0:01:03]}  Nd6 {[%clk 0:00:39]} 28. Nf4+ {[%clk 0:01:03]}  Kf6 {[%clk 0:00:37]} 29. Re6+ {[%clk 0:01:03]}  Kf7 {[%clk 0:00:37]} 30. Rf1 {[%clk 0:01:02]}  Ke8 {[%clk 0:00:33]} 31. Ng6 {[%clk 0:01:01]}  Rh7 {[%clk 0:00:30]} 32. Rfe1 {[%clk 0:01:00]}  Nf5 {[%clk 0:00:26]} 33. d6 {[%clk 0:00:56]}  Nxd6 {[%clk 0:00:21]} 34. Rxd6 {[%clk 0:00:53]}  Rg7 {[%clk 0:00:17]} 35. Rxe7+ {[%clk 0:00:52]} 1-0


[Site "https://www.chess.com"]

[Event "Titled Tuesday Blitz November 14 Late 2023"]
[White "Ghosh, Chanchal Kumer"]
[Black "Oliveira, Tiago Batista"]
[WhiteFideId "10201858"]
[BlackFideId "2108291"]
[WhiteElo "2156"]
[BlackElo "2064"]
[Result "1-0"]
[Round "6"]
[TimeControl "180+1"]
[Date "2023.11.14"]
[WhiteClock "0:00:19"]
[BlackClock "0:00:11"]
[Board "138"]

1. e4 {[%clk 0:03:00]}  e5 {[%clk 0:02:59]} 2. Nf3 {[%clk 0:03:01]}  Nc6 {[%clk 0:02:59]} 3. Bc4 {[%clk 0:03:00]}  Bc5 {[%clk 0:02:57]} 4. c3 {[%clk 0:02:59]}  Nf6 {[%clk 0:02:57]} 5. d4 {[%clk 0:02:57]}  exd4 {[%clk 0:02:57]} 6. cxd4 {[%clk 0:02:57]}  Bb4+ {[%clk 0:02:57]} 7. Nc3 {[%clk 0:02:49]}  Nxe4 {[%clk 0:02:56]} 8. O-O {[%clk 0:02:48]}  Bxc3 {[%clk 0:02:56]} 9. d5 {[%clk 0:02:40]}  Bf6 {[%clk 0:02:52]} 10. Re1 {[%clk 0:02:37]}  Ne7 {[%clk 0:02:52]} 11. Rxe4 {[%clk 0:02:32]}  d6 {[%clk 0:02:52]} 12. Bg5 {[%clk 0:02:30]}  Bxg5 {[%clk 0:02:50]} 13. Nxg5 {[%clk 0:02:29]}  h6 {[%clk 0:02:51]} 14. Qe2 {[%clk 0:02:26]}  hxg5 {[%clk 0:02:49]} 15. Re1 {[%clk 0:02:25]}  Be6 {[%clk 0:02:49]} 16. dxe6 {[%clk 0:02:24]}  f5 {[%clk 0:02:36]} 17. Re3 {[%clk 0:01:50]}  c6 {[%clk 0:01:48]} 18. Rh3 {[%clk 0:01:31]}  Rxh3 {[%clk 0:01:47]} 19. gxh3 {[%clk 0:01:32]}  g6 {[%clk 0:01:47]} 20. Qd2 {[%clk 0:00:58]}  d5 {[%clk 0:01:23]} 21. Qd4 {[%clk 0:00:36]}  Ng8 {[%clk 0:00:29]} 22. Qg7 {[%clk 0:00:27]}  Qf6 {[%clk 0:00:14]} 23. Qxg8+ {[%clk 0:00:20]}  Ke7 {[%clk 0:00:15]} 24. Qxa8 {[%clk 0:00:19]}  dxc4 {[%clk 0:00:11]} 25. Qxb7+ {[%clk 0:00:19]} 1-0


[Site "https://www.chess.com"]

[Event "Titled Tuesday Blitz November 14 Late 2023"]
[White "Martinez Alcantara, Jose Eduardo"]
[Black "Erigaisi Arjun"]
[WhiteFideId "3805662"]
[BlackFideId "35009192"]
[WhiteElo "3035"]
[BlackElo "3053"]
[Result "0-1"]
[Round "7"]
[TimeControl "180+1"]
[Date "2023.11.14"]
[WhiteClock "0:00:02"]
[BlackClock "0:00:04"]
[Board "1"]

1. e4 {[%clk 0:03:00]}  c6 {[%clk 0:02:59]} 2. d4 {[%clk 0:03:01]}  d5 {[%clk 0:03:00]} 3. e5 {[%clk 0:03:02]}  Bf5 {[%clk 0:03:00]} 4. h4 {[%clk 0:03:02]}  h6 {[%clk 0:02:57]} 5. g4 {[%clk 0:03:02]}  Be4 {[%clk 0:02:56]} 6. f3 {[%clk 0:03:02]}  Bh7 {[%clk 0:02:57]} 7. Bd3 {[%clk 0:03:02]}  Bxd3 {[%clk 0:02:55]} 8. Qxd3 {[%clk 0:03:03]}  e6 {[%clk 0:02:56]} 9. h5 {[%clk 0:03:04]}  c5 {[%clk 0:02:54]} 10. c3 {[%clk 0:03:04]}  Nc6 {[%clk 0:02:52]} 11. Ne2 {[%clk 0:03:02]}  Qb6 {[%clk 0:02:50]} 12. a3 {[%clk 0:03:00]}  Rc8 {[%clk 0:02:47]} 13. Nd2 {[%clk 0:03:00]}  c4 {[%clk 0:02:25]} 14. Qc2 {[%clk 0:02:52]}  Nge7 {[%clk 0:02:26]} 15. f4 {[%clk 0:02:51]}  Na5 {[%clk 0:02:25]} 16. Ng3 {[%clk 0:02:42]}  g6 {[%clk 0:02:11]} 17. hxg6 {[%clk 0:02:17]}  fxg6 {[%clk 0:02:12]} 18. f5 {[%clk 0:02:18]}  gxf5 {[%clk 0:01:54]} 19. gxf5 {[%clk 0:02:18]}  Rg8 {[%clk 0:01:39]} 20. Nh5 {[%clk 0:02:18]}  Rg2 {[%clk 0:01:39]} 21. Qa4+ {[%clk 0:01:56]}  Kd8 {[%clk 0:01:31]} 22. Nf6 {[%clk 0:01:54]}  Nac6 {[%clk 0:01:07]} 23. fxe6 {[%clk 0:01:53]}  Nxe5 {[%clk 0:00:50]} 24. Kf1 {[%clk 0:01:11]}  Rg5 {[%clk 0:00:35]} 25. dxe5 {[%clk 0:00:58]}  Rf5+ {[%clk 0:00:34]} 26. Ke1 {[%clk 0:00:58]}  Qxe6 {[%clk 0:00:32]} 27. Kd1 {[%clk 0:00:50]}  Rxe5 {[%clk 0:00:29]} 28. Rf1 {[%clk 0:00:47]}  Bg7 {[%clk 0:00:25]} 29. Qxa7 {[%clk 0:00:19]}  Bxf6 {[%clk 0:00:24]} 30. Nf3 {[%clk 0:00:19]}  Re2 {[%clk 0:00:17]} 31. Bd2 {[%clk 0:00:19]}  Qe4 {[%clk 0:00:14]} 32. Qxb7 {[%clk 0:00:16]}  Rc6 {[%clk 0:00:13]} 33. Qb8+ {[%clk 0:00:09]}  Kd7 {[%clk 0:00:11]} 34. Qb7+ {[%clk 0:00:10]}  Ke8 {[%clk 0:00:10]} 35. Qb8+ {[%clk 0:00:10]}  Kd7 {[%clk 0:00:08]} 36. a4 {[%clk 0:00:10]}  Re6 {[%clk 0:00:07]} 37. Qb5+ {[%clk 0:00:07]}  Nc6 {[%clk 0:00:05]} 38. Qb7+ {[%clk 0:00:08]}  Ke8 {[%clk 0:00:06]} 39. Rg1 {[%clk 0:00:03]}  Be7 {[%clk 0:00:03]} 40. Rf1 {[%clk 0:00:03]}  Qd3 {[%clk 0:00:03]} 41. Qc8+ {[%clk 0:00:03]}  Nd8 {[%clk 0:00:03]} 42. Rc1 {[%clk 0:00:01]}  Rg2 {[%clk 0:00:03]} 43. Re1 {[%clk 0:00:01]}  Qxf3+ {[%clk 0:00:03]} 44. Kc2 {[%clk 0:00:02]}  Rxd2+ {[%clk 0:00:04]} 45. Kxd2 {[%clk 0:00:02]}  Qd3# {[%clk 0:00:04]} 0-1


[Site "https://www.chess.com"]

[Event "Titled Tuesday Blitz November 14 Late 2023"]
[White "Nihal Sarin"]
[Black "Khismatullin, Denis"]
[WhiteFideId "25092340"]
[BlackFideId "4142578"]
[WhiteElo "3101"]
[BlackElo "2971"]
[Result "0-1"]
[Round "7"]
[TimeControl "180+1"]
[Date "2023.11.14"]
[WhiteClock "0:00:00"]
[BlackClock "0:00:02"]
[Board "3"]

1. d4 {[%clk 0:03:00]}  d5 {[%clk 0:02:57]} 2. Nf3 {[%clk 0:03:00]}  Nf6 {[%clk 0:02:57]} 3. Bf4 {[%clk 0:03:00]}  c5 {[%clk 0:02:57]} 4. e3 {[%clk 0:03:00]}  Nc6 {[%clk 0:02:57]} 5. Nbd2 {[%clk 0:03:01]}  Bg4 {[%clk 0:02:57]} 6. c3 {[%clk 0:03:01]}  e6 {[%clk 0:02:57]} 7. Qa4 {[%clk 0:03:01]}  Bxf3 {[%clk 0:02:54]} 8. Nxf3 {[%clk 0:03:02]}  a6 {[%clk 0:02:54]} 9. Ne5 {[%clk 0:02:57]}  Rc8 {[%clk 0:02:54]} 10. Nxc6 {[%clk 0:02:53]}  Qd7 {[%clk 0:02:54]} 11. dxc5 {[%clk 0:02:23]}  Bxc5 {[%clk 0:02:53]} 12. Bd3 {[%clk 0:02:22]}  Qxc6 {[%clk 0:02:45]} 13. Qc2 {[%clk 0:02:22]}  h6 {[%clk 0:02:41]} 14. Be5 {[%clk 0:02:17]}  Be7 {[%clk 0:02:35]} 15. O-O-O {[%clk 0:02:10]}  b5 {[%clk 0:02:31]} 16. Kb1 {[%clk 0:02:10]}  O-O {[%clk 0:02:30]} 17. g4 {[%clk 0:02:10]}  Nd7 {[%clk 0:02:30]} 18. Bg3 {[%clk 0:02:04]}  Nc5 {[%clk 0:02:23]} 19. Bh7+ {[%clk 0:01:57]}  Kh8 {[%clk 0:02:22]} 20. h4 {[%clk 0:01:58]}  Na4 {[%clk 0:02:16]} 21. Bd3 {[%clk 0:01:18]}  b4 {[%clk 0:01:37]} 22. cxb4 {[%clk 0:01:14]}  Qd7 {[%clk 0:01:38]} 23. Qb3 {[%clk 0:01:06]}  Bf6 {[%clk 0:01:34]} 24. Rd2 {[%clk 0:00:54]}  a5 {[%clk 0:00:53]} 25. bxa5 {[%clk 0:00:29]}  Nc5 {[%clk 0:00:37]} 26. Qb5 {[%clk 0:00:29]}  Qa7 {[%clk 0:00:29]} 27. g5 {[%clk 0:00:24]}  Rb8 {[%clk 0:00:18]} 28. Bxb8 {[%clk 0:00:24]}  Rxb8 {[%clk 0:00:19]} 29. Qc6 {[%clk 0:00:11]}  Qxa5 {[%clk 0:00:19]} 30. Rc2 {[%clk 0:00:05]}  Bxb2 {[%clk 0:00:19]} 31. Rxb2 {[%clk 0:00:04]}  Rxb2+ {[%clk 0:00:13]} 32. Kxb2 {[%clk 0:00:05]}  Nxd3+ {[%clk 0:00:11]} 33. Ka1 {[%clk 0:00:06]}  Qd2 {[%clk 0:00:07]} 34. Rb1 {[%clk 0:00:04]}  Kh7 {[%clk 0:00:06]} 35. gxh6 {[%clk 0:00:02]}  Kxh6 {[%clk 0:00:05]} 36. Qc8 {[%clk 0:00:02]}  Qxf2 {[%clk 0:00:03]} 37. Qh8+ {[%clk 0:00:02]}  Kg6 {[%clk 0:00:03]} 38. Qc8 {[%clk 0:00:00]}  Qf6+ {[%clk 0:00:02]} 0-1


[Site "https://www.chess.com"]

[Event "Titled Tuesday Blitz November 14 Late 2023"]
[White "Bazeev, German"]
[Black "Paravyan, David"]
[WhiteFideId "24119350"]
[BlackFideId "4194985"]
[WhiteElo "2821"]
[BlackElo "3023"]
[Result "1/2-1/2"]
[Round "7"]
[TimeControl "180+1"]
[Date "2023.11.14"]
[WhiteClock "0:00:08"]
[BlackClock "0:00:27"]
[Board "5"]

1. c4 {[%clk 0:02:58]}  e6 {[%clk 0:02:59]} 2. Nf3 {[%clk 0:02:56]}  d5 {[%clk 0:02:58]} 3. d4 {[%clk 0:02:57]}  Nf6 {[%clk 0:02:58]} 4. g3 {[%clk 0:02:55]}  Be7 {[%clk 0:02:57]} 5. Bg2 {[%clk 0:02:52]}  O-O {[%clk 0:02:57]} 6. O-O {[%clk 0:02:53]}  dxc4 {[%clk 0:02:58]} 7. Qc2 {[%clk 0:02:53]}  b5 {[%clk 0:02:58]} 8. a4 {[%clk 0:02:53]}  Bb7 {[%clk 0:02:58]} 9. axb5 {[%clk 0:02:53]}  a6 {[%clk 0:02:58]} 10. Nc3 {[%clk 0:02:27]}  axb5 {[%clk 0:02:57]} 11. Rxa8 {[%clk 0:02:28]}  Bxa8 {[%clk 0:02:58]} 12. Nxb5 {[%clk 0:02:29]}  Bd5 {[%clk 0:02:59]} 13. Bg5 {[%clk 0:02:24]}  Nc6 {[%clk 0:02:58]} 14. Bxf6 {[%clk 0:02:21]}  Bxf6 {[%clk 0:02:56]} 15. e3 {[%clk 0:02:21]}  Nb4 {[%clk 0:02:14]} 16. Qd1 {[%clk 0:02:00]}  c5 {[%clk 0:02:11]} 17. dxc5 {[%clk 0:01:21]}  Bxb2 {[%clk 0:01:34]} 18. Qa4 {[%clk 0:01:15]}  Nd3 {[%clk 0:01:32]} 19. e4 {[%clk 0:01:14]}  Bxe4 {[%clk 0:01:29]} 20. Qxc4 {[%clk 0:01:14]}  Qd5 {[%clk 0:01:21]} 21. Qxd5 {[%clk 0:01:06]}  Bxd5 {[%clk 0:01:22]} 22. Rb1 {[%clk 0:00:37]}  Bf6 {[%clk 0:01:21]} 23. Nd2 {[%clk 0:00:23]}  Bxg2 {[%clk 0:01:18]} 24. Kxg2 {[%clk 0:00:24]}  Nxc5 {[%clk 0:01:18]} 25. Nd6 {[%clk 0:00:24]}  Be7 {[%clk 0:01:16]} 26. N2c4 {[%clk 0:00:25]}  Rd8 {[%clk 0:01:14]} 27. Rb5 {[%clk 0:00:24]}  Nd3 {[%clk 0:01:03]} 28. Rb7 {[%clk 0:00:23]}  Kf8 {[%clk 0:00:56]} 29. Ne4 {[%clk 0:00:23]}  f6 {[%clk 0:00:51]} 30. Na5 {[%clk 0:00:22]}  Ne5 {[%clk 0:00:45]} 31. f4 {[%clk 0:00:20]}  Ra8 {[%clk 0:00:42]} 32. fxe5 {[%clk 0:00:19]}  Rxa5 {[%clk 0:00:41]} 33. exf6 {[%clk 0:00:20]}  gxf6 {[%clk 0:00:42]} 34. Rb8+ {[%clk 0:00:20]}  Kf7 {[%clk 0:00:42]} 35. Rb7 {[%clk 0:00:21]}  Rd5 {[%clk 0:00:41]} 36. Kf3 {[%clk 0:00:21]}  h6 {[%clk 0:00:40]} 37. g4 {[%clk 0:00:20]}  Rd3+ {[%clk 0:00:38]} 38. Kf2 {[%clk 0:00:19]}  h5 {[%clk 0:00:34]} 39. gxh5 {[%clk 0:00:18]}  Rh3 {[%clk 0:00:34]} 40. Nd6+ {[%clk 0:00:07]}  Kf8 {[%clk 0:00:34]} 41. Rb8+ {[%clk 0:00:07]}  Kg7 {[%clk 0:00:35]} 42. Rb7 {[%clk 0:00:07]}  Rxh2+ {[%clk 0:00:23]} 43. Kf3 {[%clk 0:00:07]}  Rxh5 {[%clk 0:00:24]} 44. Rxe7+ {[%clk 0:00:06]}  Kg6 {[%clk 0:00:25]} 45. Rxe6 {[%clk 0:00:07]}  Re5 {[%clk 0:00:25]} 46. Rxe5 {[%clk 0:00:06]}  fxe5 {[%clk 0:00:26]} 47. Ke4 {[%clk 0:00:07]}  Kg5 {[%clk 0:00:26]} 48. Nc4 {[%clk 0:00:08]}  Kg4 {[%clk 0:00:27]} 49. Nxe5+ {[%clk 0:00:08]} 1/2-1/2


[Site "https://www.chess.com"]

[Event "Titled Tuesday Blitz November 14 Late 2023"]
[White "Grischuk, Alexander"]
[Black "Nazari, Arad"]
[WhiteFideId "4126025"]
[BlackFideId "12577324"]
[WhiteElo "2949"]
[BlackElo "2778"]
[Result "0-1"]
[Round "7"]
[TimeControl "180+1"]
[Date "2023.11.14"]
[WhiteClock "0:00:03"]
[BlackClock "0:00:07"]
[Board "8"]

1. d4 {[%clk 0:03:00]}  Nf6 {[%clk 0:03:00]} 2. c4 {[%clk 0:03:01]}  g6 {[%clk 0:03:01]} 3. h4 {[%clk 0:03:00]}  Bg7 {[%clk 0:02:54]} 4. Nc3 {[%clk 0:03:00]}  d5 {[%clk 0:02:52]} 5. h5 {[%clk 0:02:57]}  Nxh5 {[%clk 0:02:46]} 6. cxd5 {[%clk 0:02:56]}  c6 {[%clk 0:02:42]} 7. e4 {[%clk 0:02:43]}  cxd5 {[%clk 0:02:32]} 8. e5 {[%clk 0:02:43]}  Bf8 {[%clk 0:02:32]} 9. Be2 {[%clk 0:02:25]}  Ng7 {[%clk 0:02:31]} 10. Bh6 {[%clk 0:02:25]}  Nc6 {[%clk 0:02:29]} 11. Qd2 {[%clk 0:02:25]}  Nf5 {[%clk 0:02:00]} 12. Bxf8 {[%clk 0:02:23]}  Rxf8 {[%clk 0:02:00]} 13. Nf3 {[%clk 0:02:02]}  h5 {[%clk 0:01:56]} 14. O-O-O {[%clk 0:02:02]}  Qa5 {[%clk 0:01:49]} 15. Kb1 {[%clk 0:02:03]}  Be6 {[%clk 0:01:41]} 16. Rc1 {[%clk 0:01:57]}  a6 {[%clk 0:01:37]} 17. Ka1 {[%clk 0:01:55]}  Kd7 {[%clk 0:01:31]} 18. Bd1 {[%clk 0:01:46]}  Rfc8 {[%clk 0:01:27]} 19. Bb3 {[%clk 0:01:45]}  Rd8 {[%clk 0:01:17]} 20. Qf4 {[%clk 0:01:43]}  Rac8 {[%clk 0:01:14]} 21. Na4 {[%clk 0:01:34]}  Kc7 {[%clk 0:00:55]} 22. Rc3 {[%clk 0:00:54]}  Kb8 {[%clk 0:00:53]} 23. Rhc1 {[%clk 0:00:54]}  Na7 {[%clk 0:00:46]} 24. Nc5 {[%clk 0:00:52]}  Nb5 {[%clk 0:00:42]} 25. R3c2 {[%clk 0:00:52]}  Rc6 {[%clk 0:00:36]} 26. a3 {[%clk 0:00:33]}  Rdc8 {[%clk 0:00:33]} 27. Ba4 {[%clk 0:00:22]}  Nbxd4 {[%clk 0:00:20]} 28. Nxd4 {[%clk 0:00:15]}  Rxc5 {[%clk 0:00:20]} 29. Rxc5 {[%clk 0:00:07]}  Rxc5 {[%clk 0:00:19]} 30. Nxe6 {[%clk 0:00:07]}  fxe6 {[%clk 0:00:18]} 31. Bd7 {[%clk 0:00:07]}  Rxc1+ {[%clk 0:00:16]} 32. Qxc1 {[%clk 0:00:08]}  Qc7 {[%clk 0:00:16]} 33. Qxc7+ {[%clk 0:00:07]}  Kxc7 {[%clk 0:00:17]} 34. Bxe6 {[%clk 0:00:07]}  Kc6 {[%clk 0:00:13]} 35. Kb1 {[%clk 0:00:04]}  h4 {[%clk 0:00:11]} 36. Kc1 {[%clk 0:00:04]}  Kc5 {[%clk 0:00:09]} 37. Kd2 {[%clk 0:00:03]}  Kd4 {[%clk 0:00:09]} 38. Bf7 {[%clk 0:00:02]}  g5 {[%clk 0:00:07]} 39. e6 {[%clk 0:00:02]}  Nd6 {[%clk 0:00:07]} 40. Bg6 {[%clk 0:00:02]}  Ke5 {[%clk 0:00:07]} 41. Kd3 {[%clk 0:00:02]}  b6 {[%clk 0:00:05]} 42. b3 {[%clk 0:00:02]}  Kxe6 {[%clk 0:00:06]} 43. a4 {[%clk 0:00:02]}  Ke5 {[%clk 0:00:06]} 44. Bh7 {[%clk 0:00:01]}  a5 {[%clk 0:00:06]} 45. Bg6 {[%clk 0:00:02]}  Ne4 {[%clk 0:00:07]} 46. Ke3 {[%clk 0:00:02]}  d4+ {[%clk 0:00:07]} 47. Kd3 {[%clk 0:00:01]}  Nxf2+ {[%clk 0:00:07]} 48. Kc4 {[%clk 0:00:02]}  Ne4 {[%clk 0:00:07]} 49. Kb5 {[%clk 0:00:01]}  Nc5 {[%clk 0:00:07]} 50. Bc2 {[%clk 0:00:01]}  d3 {[%clk 0:00:08]} 51. Bd1 {[%clk 0:00:01]}  Nd7 {[%clk 0:00:07]} 52. Kc6 {[%clk 0:00:01]}  Nf6 {[%clk 0:00:04]} 53. Kxb6 {[%clk 0:00:01]}  g4 {[%clk 0:00:04]} 54. b4 {[%clk 0:00:02]}  h3 {[%clk 0:00:05]} 55. gxh3 {[%clk 0:00:02]}  gxh3 {[%clk 0:00:04]} 56. bxa5 {[%clk 0:00:02]}  h2 {[%clk 0:00:04]} 57. Bf3 {[%clk 0:00:02]}  d2 {[%clk 0:00:05]} 58. a6 {[%clk 0:00:02]}  d1=Q {[%clk 0:00:05]} 59. Bxd1 {[%clk 0:00:02]}  h1=Q {[%clk 0:00:05]} 60. Bb3 {[%clk 0:00:03]}  Qb1 {[%clk 0:00:05]} 61. a7 {[%clk 0:00:03]}  Qxb3+ {[%clk 0:00:06]} 62. Ka6 {[%clk 0:00:03]}  Qxa4+ {[%clk 0:00:06]} 63. Kb7 {[%clk 0:00:03]}  Qxa7+ {[%clk 0:00:06]} 64. Kc8 {[%clk 0:00:04]}  Kd4 {[%clk 0:00:07]} 65. Kd8 {[%clk 0:00:03]}  Qd7# {[%clk 0:00:07]} 0-1


[Site "https://www.chess.com"]

[Event "Titled Tuesday Blitz November 14 Late 2023"]
[White "Zeltsan, Joseph"]
[Black "Zhigalko, Sergei"]
[WhiteFideId "30932980"]
[BlackFideId "13502956"]
[WhiteElo "2729"]
[BlackElo "2901"]
[Result "0-1"]
[Round "7"]
[TimeControl "180+1"]
[Date "2023.11.14"]
[WhiteClock "0:00:00"]
[BlackClock "0:00:04"]
[Board "9"]

1. e4 {[%clk 0:03:00]}  c5 {[%clk 0:02:59]} 2. Nf3 {[%clk 0:03:00]}  Nc6 {[%clk 0:03:00]} 3. Bb5 {[%clk 0:03:00]}  Nf6 {[%clk 0:03:00]} 4. Nc3 {[%clk 0:02:55]}  Qc7 {[%clk 0:03:00]} 5. O-O {[%clk 0:02:55]}  Nd4 {[%clk 0:03:00]} 6. Re1 {[%clk 0:02:54]}  a6 {[%clk 0:03:00]} 7. e5 {[%clk 0:02:49]}  Nxb5 {[%clk 0:02:59]} 8. exf6 {[%clk 0:02:47]}  Nxc3 {[%clk 0:02:59]} 9. fxg7 {[%clk 0:02:40]}  Bxg7 {[%clk 0:03:00]} 10. dxc3 {[%clk 0:02:39]}  d6 {[%clk 0:02:58]} 11. Bg5 {[%clk 0:02:25]}  Be6 {[%clk 0:02:57]} 12. Bf4 {[%clk 0:02:18]}  h6 {[%clk 0:02:48]} 13. Qd2 {[%clk 0:02:13]}  O-O-O {[%clk 0:02:46]} 14. Rad1 {[%clk 0:02:09]}  Bg4 {[%clk 0:02:23]} 15. Qd3 {[%clk 0:02:03]}  e5 {[%clk 0:02:21]} 16. Bg3 {[%clk 0:01:56]}  f5 {[%clk 0:02:13]} 17. h3 {[%clk 0:01:57]}  e4 {[%clk 0:02:10]} 18. Qd5 {[%clk 0:01:57]}  Bxf3 {[%clk 0:01:33]} 19. gxf3 {[%clk 0:01:50]}  Be5 {[%clk 0:01:31]} 20. fxe4 {[%clk 0:01:35]}  f4 {[%clk 0:01:27]} 21. Bxf4 {[%clk 0:01:35]}  Rhg8+ {[%clk 0:01:06]} 22. Kf1 {[%clk 0:01:22]}  Qd7 {[%clk 0:00:35]} 23. Bxe5 {[%clk 0:01:22]}  Qxh3+ {[%clk 0:00:34]} 24. Ke2 {[%clk 0:01:22]}  Qh5+ {[%clk 0:00:28]} 25. Ke3 {[%clk 0:01:05]}  dxe5 {[%clk 0:00:19]} 26. Qxc5+ {[%clk 0:01:05]}  Kb8 {[%clk 0:00:19]} 27. Rd3 {[%clk 0:00:46]}  Rc8 {[%clk 0:00:06]} 28. Qd6+ {[%clk 0:00:46]}  Ka8 {[%clk 0:00:06]} 29. Kd2 {[%clk 0:00:40]}  Qg5+ {[%clk 0:00:06]} 30. Kd1 {[%clk 0:00:31]}  Rcf8 {[%clk 0:00:05]} 31. Qc5 {[%clk 0:00:23]}  Qg4+ {[%clk 0:00:02]} 32. Kc1 {[%clk 0:00:20]}  Qf4+ {[%clk 0:00:02]} 33. Kb1 {[%clk 0:00:19]}  Qxf2 {[%clk 0:00:02]} 34. Qxf2 {[%clk 0:00:19]}  Rxf2 {[%clk 0:00:03]} 35. Rd5 {[%clk 0:00:17]}  Re2 {[%clk 0:00:03]} 36. Rh1 {[%clk 0:00:16]}  Rgg2 {[%clk 0:00:02]} 37. Rc1 {[%clk 0:00:11]}  Rxe4 {[%clk 0:00:02]} 38. b3 {[%clk 0:00:10]}  Ree2 {[%clk 0:00:02]} 39. Rd6 {[%clk 0:00:09]}  h5 {[%clk 0:00:02]} 40. Rh6 {[%clk 0:00:10]}  Rh2 {[%clk 0:00:02]} 41. Kb2 {[%clk 0:00:10]}  e4 {[%clk 0:00:02]} 42. c4 {[%clk 0:00:10]}  Ka7 {[%clk 0:00:02]} 43. Kc3 {[%clk 0:00:11]}  h4 {[%clk 0:00:02]} 44. Kd4 {[%clk 0:00:10]}  h3 {[%clk 0:00:02]} 45. c3 {[%clk 0:00:08]}  e3 {[%clk 0:00:02]} 46. Kd3 {[%clk 0:00:09]}  Rxa2 {[%clk 0:00:01]} 47. Kxe3 {[%clk 0:00:09]}  Rab2 {[%clk 0:00:02]} 48. b4 {[%clk 0:00:10]}  Rbc2 {[%clk 0:00:02]} 49. Rxc2 {[%clk 0:00:09]}  Rxc2 {[%clk 0:00:03]} 50. Kd3 {[%clk 0:00:10]}  Rg2 {[%clk 0:00:03]} 51. Rxh3 {[%clk 0:00:09]}  Rg7 {[%clk 0:00:03]} 52. c5 {[%clk 0:00:09]}  Rd7+ {[%clk 0:00:03]} 53. Kc4 {[%clk 0:00:10]}  Rg7 {[%clk 0:00:04]} 54. Rh6 {[%clk 0:00:10]}  Rg4+ {[%clk 0:00:04]} 55. Kb3 {[%clk 0:00:11]}  Rg7 {[%clk 0:00:04]} 56. Rf6 {[%clk 0:00:11]}  Rh7 {[%clk 0:00:04]} 57. Re6 {[%clk 0:00:11]}  Rg7 {[%clk 0:00:04]} 58. Rd6 {[%clk 0:00:12]}  Rh7 {[%clk 0:00:04]} 59. Kc4 {[%clk 0:00:12]}  Rh4+ {[%clk 0:00:04]} 60. Rd4 {[%clk 0:00:13]}  Rh6 {[%clk 0:00:04]} 61. Rd7 {[%clk 0:00:13]}  Rg6 {[%clk 0:00:04]} 62. Kb3 {[%clk 0:00:12]}  Rh6 {[%clk 0:00:04]} 63. Rf7 {[%clk 0:00:12]}  Rg6 {[%clk 0:00:04]} 64. Kc4 {[%clk 0:00:13]}  Rg4+ {[%clk 0:00:03]} 65. Kd5 {[%clk 0:00:12]}  Rg5+ {[%clk 0:00:04]} 66. Kd6 {[%clk 0:00:11]}  Rg6+ {[%clk 0:00:04]} 67. Ke5 {[%clk 0:00:11]}  Kb8 {[%clk 0:00:04]} 68. c4 {[%clk 0:00:08]}  Rg5+ {[%clk 0:00:02]} 69. Ke6 {[%clk 0:00:08]}  Rg6+ {[%clk 0:00:02]} 70. Rf6 {[%clk 0:00:07]}  Rg4 {[%clk 0:00:02]} 71. Kd5 {[%clk 0:00:07]}  Kc7 {[%clk 0:00:02]} 72. Rf7+ {[%clk 0:00:07]}  Kc8 {[%clk 0:00:02]} 73. c6 {[%clk 0:00:06]}  bxc6+ {[%clk 0:00:02]} 74. Kc5 {[%clk 0:00:07]}  Kb8 {[%clk 0:00:02]} 75. Kb6 {[%clk 0:00:06]}  Kc8 {[%clk 0:00:03]} 76. c5 {[%clk 0:00:05]}  Rxb4+ {[%clk 0:00:04]} 77. Kxc6 {[%clk 0:00:05]}  Kd8 {[%clk 0:00:04]} 78. Ra7 {[%clk 0:00:05]}  Ra4 {[%clk 0:00:03]} 79. Ra8+ {[%clk 0:00:05]}  Ke7 {[%clk 0:00:04]} 80. Kc7 {[%clk 0:00:06]}  a5 {[%clk 0:00:04]} 81. c6 {[%clk 0:00:00]}  Ra1 {[%clk 0:00:04]} 0-1


[Site "https://www.chess.com"]